fUST/lending_fUST_20250101
["ID","MTS","AMOUNT","RATE_DAILY","PERIOD"]
[347298253,1735666242347,-500.0,0.00019726,3]
[347298254,1735666242356,-500.0,0.00019726,3]
[347298255,1735666242366,-500.0,0.00019726,3]
[347298256,1735666242376,-737.75,0.00019726,3]
[347298257,1735666242385,-500.0,0.00019726,3]
[347298258,1735666242395,-500.0,0.00019726,3]
[347298259,1735666242404,-500.0,0.00019726,3]
[347298260,1735666242413,-535.57,0.00019726,3]
[347298261,1735666242423,-135806.22160048,0.00019726,2]
[347298262,1735666242433,-500.0,0.00019726,3]
[347298263,1735666242444,-500.0,0.00019726,3]
[347298264,1735666242453,-500.0,0.00019726,3]
[347298265,1735666242462,-1096.18,0.00019726,3]
[347298266,1735666242471,-96.19969262,0.00019726,3]
[347298273,1735666243285,-259.65384319,0.00019178,2]
[347298275,1735666246414,-1404.48615681,0.00019178,2]
[347298276,1735666246425,-132.34265268,0.00019178,2]
[347298284,1735666443762,19451.47836055,0.00014999,2]
[347298285,1735666444034,19451.47836055,0.00014997,2]
[347298286,1735666444319,19451.47836055,0.00014987,2]
[347298287,1735666786924,400.0,0.00013973,2]
[347298289,1735667262417,351.98356913,0.00025,120]
[347298339,1735667435369,-263.59,0.00017,2]
[347298341,1735667435379,-188.246027,0.00017172,2]
[347298342,1735667435388,-477.3861515,0.00017392,2]
[347298344,1735667435398,-213.6329361,0.00017579,2]
[347298346,1735667435408,-500.0,0.000181,2]
[347298348,1735667435417,-1307.95764834,0.00018166,2]
[347298350,1735667435427,-1738.33723706,0.0001817,2]
[347298352,1735667435438,-937.51,0.0001817,2]
[347298354,1735667435451,-2488.91032549,0.0001817,2]
[347298357,1735667435460,-300.0,0.00018175,2]
[347298358,1735667435469,-24900.0,0.00018176,2]
[347298361,1735667435479,-210.05770165,0.000189,2]
[347298362,1735667435488,-998.80143827,0.00018999,2]
[347298365,1735667435498,-36729.54627407,0.00019,7]
[347298367,1735667435507,-599.92003862,0.00019077,2]
[347298369,1735667435518,-1760.4658545,0.00019078,2]
[347298371,1735667435527,-18274.88918351,0.00019078,2]
[347298373,1735667435536,-152.0,0.00019094,2]
[347298375,1735667435546,-465.59811448,0.00019152,2]
[347298377,1735667435555,-150.0,0.00019173,2]
[347298379,1735667435565,-500.0,0.00019173,2]
[347298381,1735667435574,-500.0,0.00019173,2]
[347298383,1735667435584,-550.0043724,0.00019173,2]
[347298385,1735667435595,-500.0,0.00019173,2]
[347298387,1735667435606,-500.0,0.00019173,2]
[347298389,1735667435615,-500.0,0.00019175,2]
[347298391,1735667435625,-212.90888944,0.00019175,2]
[347298393,1735667435634,-439.66122446,0.00019175,2]
[347298395,1735667435643,-500.0,0.00019175,2]
[347298397,1735667435654,-500.0,0.00019175,2]
[347298399,1735667435663,-500.0,0.00019175,2]
[347298401,1735667435673,-500.0,0.00019175,2]
[347298403,1735667435682,-500.0,0.00019175,2]
[347298405,1735667435692,-500.0,0.00019175,2]
[347298407,1735667435702,-500.0,0.00019175,2]
[347298409,1735667435711,-500.0,0.00019175,2]
[347298411,1735667435721,-500.0,0.00019175,2]
[347298413,1735667435731,-500.0,0.00019175,2]
[347298415,1735667435739,-500.0,0.00019175,2]
[347298417,1735667435749,-500.0,0.00019175,2]
[347298419,1735667435758,-500.0,0.00019175,2]
[347298421,1735667435768,-500.0,0.00019175,2]
[347298423,1735667435777,-500.0,0.00019175,2]
[347298424,1735667435786,-490.1943793,0.00019175,2]
[347298425,1735667435796,-500.0,0.00019175,2]
[347298426,1735667435806,-500.0,0.00019175,2]
[347298427,1735667435816,-500.0,0.00019175,2]
[347298428,1735667435825,-300.14790039,0.00019175,2]
[347298429,1735667435835,-388.39653337,0.00019175,2]
[347298430,1735667435847,-500.0,0.00019175,2]
[347298431,1735667435856,-500.0,0.00019175,2]
[347298432,1735667435866,-164.61376389,0.00019175,2]
[347298433,1735667435875,-500.0,0.00019175,2]
[347298434,1735667435884,-500.0,0.00019175,2]
[347298435,1735667435893,-500.0,0.00019175,2]
[347298436,1735667435903,-500.0,0.00019175,2]
[347298437,1735667435912,-500.0,0.00019175,2]
[347298438,1735667435922,-500.0,0.00019175,2]
[347298439,1735667435931,-500.0,0.00019175,2]
[347298440,1735667435941,-500.0,0.00019175,2]
[347298441,1735667435951,-500.0,0.00019175,2]
[347298442,1735667435961,-500.0,0.00019175,2]
[347298443,1735667435971,-500.0,0.00019175,2]
[347298444,1735667435980,-500.0,0.00019175,2]
[347298445,1735667435990,-500.0,0.00019175,2]
[347298446,1735667436000,-500.0,0.00019175,2]
[347298447,1735667436010,-500.0,0.00019175,2]
[347298448,1735667436020,-500.0,0.00019175,2]
[347298449,1735667436030,-500.0,0.00019175,2]
[347298450,1735667436040,-500.0,0.00019175,2]
[347298451,1735667436050,-500.0,0.00019175,2]
[347298452,1735667436060,-500.0,0.00019175,2]
[347298453,1735667436070,-500.0,0.00019175,2]
[347298455,1735667436080,-500.0,0.00019175,2]
[347298457,1735667436090,-500.0,0.00019175,2]
[347298459,1735667436102,-500.0,0.00019175,2]
[347298461,1735667436111,-500.0,0.00019175,2]
[347298463,1735667436121,-500.0,0.00019175,2]
[347298465,1735667436131,-500.0,0.00019175,2]
[347298467,1735667436140,-500.0,0.00019175,2]
[347298469,1735667436149,-500.0,0.00019175,2]
[347298471,1735667436159,-500.0,0.00019175,2]
[347298473,1735667436168,-500.0,0.00019175,2]
[347298475,1735667436178,-500.0,0.00019175,2]
[347298477,1735667436188,-500.0,0.00019175,2]
[347298479,1735667436200,-644.9941347,0.00019175,2]
[347298481,1735667436213,-500.0,0.00019175,2]
[347298484,1735667436224,-500.0,0.00019175,2]
[347298486,1735667436234,-500.0,0.00019175,2]
[347298488,1735667436245,-500.0,0.00019175,2]
[347298490,1735667436255,-500.0,0.00019175,2]
[347298491,1735667436268,-500.0,0.00019175,2]
[347298494,1735667436278,-500.0,0.00019175,2]
[347298495,1735667436287,-500.0,0.00019175,2]
[347298497,1735667436297,-500.0,0.00019175,2]
[347298499,1735667436308,-500.0,0.00019175,2]
[347298501,1735667436317,-500.0,0.00019175,2]
[347298504,1735667436329,-500.0,0.00019175,2]
[347298506,1735667436340,-500.0,0.00019175,2]
[347298508,1735667436355,-500.0,0.00019175,2]
[347298510,1735667436364,-500.0,0.00019175,2]
[347298512,1735667436374,-187.275,0.00019177,2]
[347298514,1735667436384,-372.331,0.00019177,2]
[347298516,1735667436393,-500.0,0.00019178,2]
[347298518,1735667436402,-500.0,0.00019178,2]
[347298520,1735667436412,-500.0,0.00019178,2]
[347298522,1735667436421,-500.0,0.00019178,2]
[347298524,1735667436430,-500.0,0.00019178,2]
[347298525,1735667436439,-505.65054291,0.00019178,2]
[347298526,1735667436449,-500.0,0.00019178,2]
[347298527,1735667436459,-500.0,0.00019178,2]
[347298528,1735667436468,-200.0,0.00019178,2]
[347298529,1735667436478,-545.13979332,0.00019178,2]
[347298530,1735667436487,-500.0,0.00019178,2]
[347298531,1735667436497,-500.0,0.00019178,2]
[347298532,1735667436507,-500.0,0.00019178,2]
[347298533,1735667436516,-500.0,0.00019178,2]
[347298534,1735667436525,-441.70720088,0.00019178,2]
[347298535,1735667436534,-239.78521782,0.00019178,2]
[347298536,1735667436544,-344.25921575,0.00019178,2]
[347298537,1735667436554,-500.0,0.00019178,2]
[347298538,1735667436564,-500.0,0.00019178,2]
[347298539,1735667436574,-500.0,0.00019178,2]
[347298540,1735667436583,-500.0,0.00019178,2]
[347298541,1735667436593,-500.0,0.00019178,2]
[347298542,1735667436604,-500.0,0.00019178,2]
[347298543,1735667436614,-500.0,0.00019178,2]
[347298544,1735667436624,-504.74532257,0.00019178,2]
[347298545,1735667436633,-504.6233686,0.00019178,2]
[347298546,1735667436643,-500.0,0.00019178,2]
[347298547,1735667436652,-500.0,0.00019178,2]
[347298548,1735667436661,-500.0,0.00019178,2]
[347298549,1735667436670,-543.56,0.00019178,2]
[347298550,1735667436679,-500.0,0.00019178,2]
[347298551,1735667436689,-500.0,0.00019178,2]
[347298552,1735667436699,-583.45079829,0.00019178,2]
[347298553,1735667436708,-500.0,0.00019178,2]
[347298554,1735667436718,-500.0,0.00019178,2]
[347298555,1735667436728,-330.67279383,0.00019178,2]
[347298556,1735667436738,-500.0,0.00019178,2]
[347298557,1735667436748,-1525.91,0.00019178,2]
[347298558,1735667436757,-501.08648061,0.00019178,2]
[347298559,1735667436766,-504.3404802,0.00019178,2]
[347298560,1735667436776,-500.0,0.00019178,2]
[347298561,1735667436785,-500.0,0.00019178,2]
[347298562,1735667436794,-500.0,0.00019178,2]
[347298563,1735667436804,-500.0,0.00019178,2]
[347298564,1735667436814,-500.0,0.00019178,2]
[347298565,1735667436824,-512.78180776,0.00019178,2]
[347298566,1735667436834,-500.0,0.00019178,2]
[347298567,1735667436843,-500.0,0.00019178,2]
[347298568,1735667436855,-500.0,0.00019178,2]
[347298569,1735667436865,-512.93948762,0.00019178,2]
[347298570,1735667436874,-500.0,0.00019178,2]
[347298571,1735667436884,-500.0,0.00019178,2]
[347298572,1735667436894,-506.33768834,0.00019178,2]
[347298573,1735667436904,-500.0,0.00019178,2]
[347298574,1735667436914,-500.0,0.00019178,2]
[347298575,1735667436924,-503.43147803,0.00019178,2]
[347298576,1735667436934,-500.0,0.00019178,2]
[347298577,1735667436943,-500.0,0.00019178,2]
[347298578,1735667436953,-500.0,0.00019178,2]
[347298579,1735667436962,-500.0,0.00019178,2]
[347298580,1735667436972,-500.0,0.00019178,2]
[347298581,1735667436981,-500.0,0.00019178,2]
[347298582,1735667436991,-500.0,0.00019178,2]
[347298583,1735667437001,-500.0,0.00019178,2]
[347298584,1735667437010,-501.25993747,0.00019178,2]
[347298585,1735667437020,-500.0,0.00019178,2]
[347298586,1735667437030,-511.8308608,0.00019178,2]
[347298587,1735667437040,-929.03,0.00019178,2]
[347298588,1735667437050,-500.0,0.00019178,2]
[347298589,1735667437059,-380.38786708,0.00019178,2]
[347298590,1735667437069,-921.68,0.00019178,2]
[347298591,1735667437078,-482.27661,0.00019178,2]
[347298592,1735667437088,-500.0,0.00019178,2]
[347298593,1735667437099,-500.0,0.00019178,2]
[347298594,1735667437108,-500.0,0.00019178,2]
[347298595,1735667437118,-663.77,0.00019178,2]
[347298596,1735667437127,-500.0,0.00019178,2]
[347298597,1735667437137,-587.06731227,0.00019178,2]
[347298598,1735667437146,-500.0,0.00019178,2]
[347298599,1735667437156,-284.81273788,0.00019178,2]
[347298600,1735667437165,-500.0,0.00019178,2]
[347298601,1735667437175,-500.0,0.00019178,2]
[347298602,1735667437184,-500.0,0.00019178,2]
[347298603,1735667437193,-396.44927889,0.00019178,2]
[347298604,1735667437202,-500.0,0.00019178,2]
[347298605,1735667437212,-500.0,0.00019178,2]
[347298606,1735667437221,-500.0,0.00019178,2]
[347298607,1735667437231,-500.0,0.00019178,2]
[347298608,1735667437240,-500.0,0.00019178,2]
[347298610,1735667437363,-500.0,0.00019178,2]
[347298611,1735667437373,-500.0,0.00019178,2]
[347298612,1735667437383,-965.99,0.00019178,2]
[347298613,1735667437392,-500.0,0.00019178,2]
[347298614,1735667437402,-502.42403459,0.00019178,2]
[347298615,1735667437412,-500.0,0.00019178,2]
[347298616,1735667437422,-500.0,0.00019178,2]
[347298617,1735667437432,-500.0,0.00019178,2]
[347298618,1735667437441,-500.0,0.00019178,2]
[347298619,1735667437451,-512.17,0.00019178,2]
[347298620,1735667437461,-188.0,0.00019178,2]
[347298621,1735667437471,-150.47083017,0.00019178,2]
[347298622,1735667437480,-500.0,0.00019178,2]
[347298623,1735667437489,-500.0,0.00019178,2]
[347298624,1735667437499,-310.74447481,0.00019178,2]
[347298625,1735667437508,-438.17811798,0.00019178,2]
[347298626,1735667437517,-538.58,0.00019178,2]
[347298627,1735667437526,-500.0,0.00019178,2]
[347298628,1735667437536,-500.0,0.00019178,2]
[347298629,1735667437545,-501.70776864,0.00019178,2]
[347298630,1735667437555,-500.0,0.00019178,2]
[347298631,1735667437564,-500.0,0.00019178,2]
[347298632,1735667437573,-500.0,0.00019178,2]
[347298633,1735667437582,-1114.06,0.00019178,2]
[347298634,1735667437592,-500.0,0.00019178,2]
[347298635,1735667437603,-500.0,0.00019178,2]
[347298636,1735667437612,-500.0,0.00019178,2]
[347298637,1735667437623,-558.34878525,0.00019178,2]
[347298638,1735667437632,-500.0,0.00019178,2]
[347298639,1735667437641,-500.0,0.00019178,2]
[347298640,1735667437651,-500.0,0.00019178,2]
[347298641,1735667437660,-500.0,0.00019178,2]
[347298642,1735667437670,-500.0,0.00019178,2]
[347298643,1735667437680,-500.0,0.00019178,2]
[347298644,1735667437689,-500.0,0.00019178,2]
[347298645,1735667437698,-616.51982857,0.00019178,2]
[347298646,1735667437707,-500.0,0.00019178,2]
[347298647,1735667437717,-500.0,0.00019178,2]
[347298648,1735667437726,-500.0,0.00019178,2]
[347298649,1735667437736,-500.0,0.00019178,2]
[347298650,1735667437745,-500.0,0.00019178,2]
[347298651,1735667437753,-906.63,0.00019178,2]
[347298652,1735667437763,-660.6,0.00019178,2]
[347298653,1735667437772,-500.0,0.00019178,2]
[347298654,1735667437781,-574.88,0.00019178,2]
[347298655,1735667437790,-6902.88,0.00019178,2]
[347298656,1735667437799,-651.3,0.00019178,2]
[347298657,1735667437808,-500.0,0.00019178,2]
[347298658,1735667437817,-500.0,0.00019178,2]
[347298659,1735667437826,-500.0,0.00019178,2]
[347298660,1735667437835,-500.0,0.00019178,2]
[347298661,1735667437845,-500.0,0.00019178,2]
[347298662,1735667437862,-498.51273859,0.00019178,2]
[347298663,1735667437871,-181.29679314,0.00019178,2]
[347298664,1735667437880,-500.0,0.00019178,2]
[347298665,1735667437889,-500.0,0.00019178,2]
[347298666,1735667437898,-599.41,0.00019178,2]
[347298668,1735667437908,-500.0,0.00019178,2]
[347298669,1735667437918,-509.40889844,0.00019178,2]
[347298670,1735667437927,-513.28845624,0.00019178,2]
[347298672,1735667437936,-500.0,0.00019178,2]
[347298673,1735667437946,-500.0,0.00019178,2]
[347298674,1735667437956,-500.0,0.00019178,2]
[347298675,1735667437965,-500.0,0.00019178,2]
[347298676,1735667437975,-500.0,0.00019178,2]
[347298677,1735667437985,-500.0,0.00019178,2]
[347298678,1735667437994,-498.79066018,0.00019178,2]
[347298679,1735667438003,-618.13,0.00019178,2]
[347298680,1735667438013,-500.0,0.00019178,2]
[347298681,1735667438023,-500.0,0.00019178,2]
[347298682,1735667438035,-1118.43,0.00019178,2]
[347298683,1735667438045,-500.0,0.00019178,2]
[347298684,1735667438055,-500.0,0.00019178,2]
[347298685,1735667438066,-505.17298432,0.00019178,2]
[347298686,1735667438075,-500.0,0.00019178,2]
[347298687,1735667438086,-500.0,0.00019178,2]
[347298688,1735667438095,-500.0,0.00019178,2]
[347298689,1735667438107,-500.0,0.00019178,2]
[347298690,1735667438117,-500.0,0.00019178,2]
[347298691,1735667438127,-500.0,0.00019178,2]
[347298692,1735667438137,-500.0,0.00019178,2]
[347298693,1735667438146,-500.0,0.00019178,2]
[347298694,1735667438156,-500.0,0.00019178,2]
[347298695,1735667438166,-200.32926924,0.00019178,2]
[347298696,1735667438176,-500.0,0.00019178,2]
[347298697,1735667438185,-500.0,0.00019178,2]
[347298698,1735667438195,-500.0,0.00019178,2]
[347298699,1735667438205,-500.0,0.00019178,2]
[347298700,1735667438214,-1278.55,0.00019178,2]
[347298701,1735667438224,-500.0,0.00019178,2]
[347298702,1735667438233,-551.19,0.00019178,2]
[347298703,1735667438243,-473.22711507,0.00019178,2]
[347298704,1735667438252,-961.46,0.00019178,2]
[347298705,1735667438267,-500.0,0.00019178,2]
[347298706,1735667438277,-852.97,0.00019178,2]
[347298707,1735667438286,-500.0,0.00019178,2]
[347298708,1735667438295,-500.0,0.00019178,2]
[347298709,1735667438307,-500.0,0.00019178,2]
[347298710,1735667438316,-500.0,0.00019178,2]
[347298711,1735667438325,-660.61,0.00019178,2]
[347298712,1735667438337,-500.0,0.00019178,2]
[347298713,1735667438346,-500.0,0.00019178,2]
[347298714,1735667438358,-505.65591794,0.00019178,2]
[347298715,1735667438368,-500.0,0.00019178,2]
[347298716,1735667438377,-500.0,0.00019178,2]
[347298717,1735667438387,-500.0,0.00019178,2]
[347298718,1735667438396,-500.0,0.00019178,2]
[347298719,1735667438405,-529.34,0.00019178,2]
[347298720,1735667438414,-1259.16,0.00019178,2]
[347298721,1735667438423,-507.36927411,0.00019178,2]
[347298722,1735667438432,-503.26527972,0.00019178,2]
[347298723,1735667438442,-307.47656864,0.00019178,2]
[347298724,1735667438451,-619.23,0.00019178,2]
[347298725,1735667438461,-473.91238707,0.00019178,2]
[347298726,1735667438471,-909.69,0.00019178,2]
[347298727,1735667438480,-502.31500196,0.00019178,2]
[347298728,1735667438490,-898.16,0.00019178,2]
[347298729,1735667438499,-500.0,0.00019178,2]
[347298730,1735667438508,-500.0,0.00019178,2]
[347298731,1735667438517,-500.0,0.00019178,2]
[347298732,1735667438527,-500.0,0.00019178,2]
[347298733,1735667438536,-500.0,0.00019178,2]
[347298734,1735667438545,-6822.57,0.00019178,2]
[347298735,1735667438555,-500.0,0.00019178,2]
[347298736,1735667438564,-519.17158636,0.00019178,2]
[347298737,1735667438574,-305.91207776,0.00019178,2]
[347298738,1735667438583,-500.0,0.00019178,2]
[347298739,1735667438593,-500.0,0.00019178,2]
[347298740,1735667438606,-10117.05,0.00019178,2]
[347298742,1735667438615,-500.0,0.00019178,2]
[347298743,1735667438624,-500.0,0.00019178,2]
[347298744,1735667438633,-500.0,0.00019178,2]
[347298745,1735667438642,-1305.31,0.00019178,2]
[347298746,1735667438651,-1615.97,0.00019178,2]
[347298747,1735667438661,-500.0,0.00019178,2]
[347298748,1735667438670,-500.0,0.00019178,2]
[347298749,1735667438679,-500.0,0.00019178,2]
[347298750,1735667438688,-500.0,0.00019178,2]
[347298751,1735667438697,-500.0,0.00019178,2]
[347298752,1735667438707,-500.0,0.00019178,2]
[347298753,1735667438716,-1583.73,0.00019178,2]
[347298754,1735667438725,-500.0,0.00019178,2]
[347298755,1735667438734,-500.0,0.00019178,2]
[347298756,1735667438744,-500.0,0.00019178,2]
[347298757,1735667438754,-500.0,0.00019178,2]
[347298758,1735667438763,-500.0,0.00019178,2]
[347298759,1735667438773,-500.0,0.00019178,2]
[347298760,1735667438783,-2080.35,0.00019178,2]
[347298761,1735667438792,-924.8,0.00019178,2]
[347298762,1735667438801,-500.0,0.00019178,2]
[347298763,1735667438811,-500.0,0.00019178,2]
[347298764,1735667438821,-1636.47,0.00019178,2]
[347298765,1735667438830,-500.0,0.00019178,2]
[347298766,1735667438839,-500.0,0.00019178,2]
[347298767,1735667438852,-973.58,0.00019178,2]
[347298768,1735667438862,-970.46,0.00019178,2]
[347298769,1735667438871,-500.0,0.00019178,2]
[347298770,1735667438880,-500.0,0.00019178,2]
[347298771,1735667438890,-500.0,0.00019178,2]
[347298772,1735667438899,-500.0,0.00019178,2]
[347298773,1735667438908,-949.8,0.00019178,2]
[347298774,1735667438918,-742.06,0.00019178,2]
[347298775,1735667438927,-889.29,0.00019178,2]
[347298776,1735667438936,-500.0,0.00019178,2]
[347298777,1735667438945,-500.0,0.00019178,2]
[347298778,1735667438955,-500.0,0.00019178,2]
[347298779,1735667438964,-1138.73,0.00019178,2]
[347298780,1735667438973,-500.0,0.00019178,2]
[347298781,1735667438982,-512.38085151,0.00019178,2]
[347298782,1735667438991,-500.0,0.00019178,2]
[347298783,1735667438999,-500.0,0.00019178,2]
[347298784,1735667439008,-500.0,0.00019178,2]
[347298785,1735667439017,-500.0,0.00019178,2]
[347298786,1735667439026,-500.0,0.00019178,2]
[347298787,1735667439035,-500.0,0.00019178,2]
[347298788,1735667439045,-171.08,0.00019178,2]
[347298789,1735667439054,-899.84,0.00019178,2]
[347298790,1735667439070,-974.07,0.00019178,2]
[347298791,1735667439079,-500.0,0.00019178,2]
[347298792,1735667439088,-500.0,0.00019178,2]
[347298793,1735667439100,-500.0,0.00019178,2]
[347298794,1735667439109,-500.0,0.00019178,2]
[347298796,1735667439118,-500.0,0.00019178,2]
[347298798,1735667439127,-500.0,0.00019178,2]
[347298800,1735667439137,-500.0,0.00019178,2]
[347298801,1735667439146,-500.0,0.00019178,2]
[347298802,1735667439156,-500.0,0.00019178,2]
[347298803,1735667439165,-500.0,0.00019178,2]
[347298804,1735667439174,-669.2,0.00019178,2]
[347298805,1735667439184,-1137.33,0.00019178,2]
[347298806,1735667439193,-500.0,0.00019178,2]
[347298807,1735667439202,-500.0,0.00019178,2]
[347298808,1735667439211,-500.0,0.00019178,2]
[347298809,1735667439223,-3522.84,0.00019178,2]
[347298810,1735667439234,-500.0,0.00019178,2]
[347298811,1735667439243,-500.0,0.00019178,2]
[347298812,1735667439252,-626.35,0.00019178,2]
[347298813,1735667439265,-500.0,0.00019178,2]
[347298814,1735667439275,-1091.71,0.00019178,2]
[347298815,1735667439284,-500.0,0.00019178,2]
[347298817,1735667439294,-500.0,0.00019178,2]
[347298819,1735667439303,-500.0,0.00019178,2]
[347298821,1735667439312,-887.93,0.00019178,2]
[347298823,1735667439322,-542.28048342,0.00019178,2]
[347298825,1735667439331,-1044.83,0.00019178,2]
[347298827,1735667439341,-655.13,0.00019178,2]
[347298830,1735667439355,-500.0,0.00019178,2]
[347298832,1735667439370,-500.0,0.00019178,2]
[347298834,1735667439379,-3487.55,0.00019178,2]
[347298836,1735667439388,-500.0,0.00019178,2]
[347298838,1735667439397,-500.0,0.00019178,2]
[347298840,1735667439406,-502.47722534,0.00019178,2]
[347298842,1735667439416,-500.0,0.00019178,2]
[347298844,1735667439425,-511.14841742,0.00019178,2]
[347298845,1735667439435,-500.0,0.00019178,2]
[347298847,1735667439445,-785.81,0.00019178,2]
[347298848,1735667439454,-500.0,0.00019178,2]
[347298849,1735667439464,-1096.0,0.00019178,2]
[347298850,1735667439473,-643.19,0.00019178,2]
[347298851,1735667439482,-500.0,0.00019178,2]
[347298852,1735667439491,-500.0,0.00019178,2]
[347298853,1735667439500,-505.1481969,0.00019178,2]
[347298854,1735667439510,-500.0,0.00019178,2]
[347298855,1735667439519,-500.0,0.00019178,2]
[347298856,1735667439529,-500.0,0.00019178,2]
[347298857,1735667439538,-1011.04,0.00019178,2]
[347298858,1735667439548,-500.0,0.00019178,2]
[347298859,1735667439557,-682.41479229,0.00019178,2]
[347298860,1735667439578,-5576.88520771,0.00019178,2]
[347298861,1735667439588,-500.0,0.00019178,2]
[347298862,1735667439603,-500.0,0.00019178,2]
[347298863,1735667439613,-648.0143002,0.00019178,2]
[347298864,1735667439623,-500.0,0.00019178,2]
[347298865,1735667439632,-500.0,0.00019178,2]
[347298866,1735667439641,-526.01,0.00019178,2]
[347298867,1735667439651,-500.0,0.00019178,2]
[347298868,1735667439660,-500.0,0.00019178,2]
[347298869,1735667439670,-502.87933699,0.00019178,2]
[347298870,1735667439679,-500.0,0.00019178,2]
[347298871,1735667439688,-500.0,0.00019178,2]
[347298872,1735667439698,-500.0,0.00019178,2]
[347298873,1735667439707,-344.146025,0.00019178,2]
[347298874,1735667439781,-155.853975,0.00019178,2]
[347298875,1735667439896,-500.0,0.00019178,2]
[347298876,1735667439906,-500.0,0.00019178,2]
[347298877,1735667439915,-1775.9,0.00019178,2]
[347298878,1735667439925,-1175.66,0.00019178,2]
[347298879,1735667439934,-500.0,0.00019178,2]
[347298881,1735667439944,-49369.0,0.00019178,2]
[347298883,1735667439954,-500.0,0.00019178,2]
[347298885,1735667439964,-931.62,0.00019178,2]
[347298886,1735667439974,-500.0,0.00019178,2]
[347298887,1735667439983,-255.64925741,0.00019178,2]
[347298889,1735667439993,-500.0,0.00019178,2]
[347298890,1735667440002,-500.0,0.00019178,2]
[347298891,1735667440012,-500.0,0.00019178,2]
[347298892,1735667440021,-2195.01,0.00019178,2]
[347298893,1735667440030,-780.75,0.00019178,2]
[347298894,1735667440040,-500.0,0.00019178,2]
[347298895,1735667440052,-500.0,0.00019178,2]
[347298896,1735667440061,-500.0,0.00019178,2]
[347298897,1735667440070,-1238.49,0.00019178,2]
[347298898,1735667440079,-500.0,0.00019178,2]
[347298899,1735667440088,-500.0,0.00019178,2]
[347298900,1735667440101,-484.2170977,0.00019178,2]
[347298901,1735667440111,-500.0,0.00019178,2]
[347298902,1735667440120,-573.9,0.00019178,2]
[347298903,1735667440129,-2249.87,0.00019178,2]
[347298904,1735667440138,-500.0,0.00019178,2]
[347298905,1735667440147,-500.0,0.00019178,2]
[347298906,1735667440157,-500.0,0.00019178,2]
[347298907,1735667440166,-500.0,0.00019178,2]
[347298908,1735667440175,-399.46814351,0.00019178,2]
[347298909,1735667440184,-1770.04,0.00019178,2]
[347298910,1735667440194,-820.83,0.00019178,2]
[347298911,1735667440203,-243.22659194,0.00019178,2]
[347298912,1735667440212,-720.35,0.00019178,2]
[347298913,1735667440221,-4579.19,0.00019178,2]
[347298914,1735667440231,-500.0,0.00019178,2]
[347298915,1735667440240,-1152.48,0.00019178,2]
[347298916,1735667440250,-500.0,0.00019178,2]
[347298917,1735667440260,-533.66,0.00019178,2]
[347298918,1735667440271,-500.0,0.00019178,2]
[347298919,1735667440281,-500.0,0.00019178,2]
[347298920,1735667440290,-500.0,0.00019178,2]
[347298921,1735667440300,-500.0,0.00019178,2]